bitfinex/quotes_BTCUSD_20250212
["timestamp","ask_amount","ask_price","bid_price","bid_amount"]
[1739373214933,0.04660003,95023.0,95022.0,0.18275506]
[1739373215137,0.04560003,95023.0,95022.0,0.17575506]
[1739373215309,0.04560003,95023.0,95022.0,0.16475506]
[1739373215471,0.04560003,95023.0,95022.0,0.16675506]
[1739373215670,0.04560003,95023.0,95022.0,0.26925871]
[1739373216051,0.04560003,95023.0,95022.0,0.27125871]
[1739373216478,3e-08,95023.0,95022.0,0.42136521]
[1739373216687,3e-08,95023.0,95022.0,0.44036521]
[1739373216882,3e-08,95023.0,95022.0,0.28250721]
[1739373217091,3e-08,95023.0,95022.0,0.10450365]
[1739373217297,3e-08,95023.0,95022.0,0.26341375]
[1739373217547,3e-08,95023.0,95022.0,0.26236165]
[1739373218356,3e-08,95023.0,95022.0,0.26736165]
[1739373218565,3e-08,95023.0,95022.0,0.27336165]
[1739373218765,3e-08,95023.0,95022.0,0.26036165]
[1739373219178,3e-08,95023.0,95022.0,0.28236165]
[1739373221059,3e-08,95023.0,95022.0,0.43236165]
[1739373221280,3e-08,95023.0,95022.0,0.179858]
[1739373222087,3e-08,95023.0,95022.0,0.28236165]
[1739373222703,3e-08,95023.0,95022.0,0.26736165]
[1739373222867,3e-08,95023.0,95022.0,0.26036165]
[1739373223069,3e-08,95023.0,95022.0,0.27536165]
[1739373223268,3e-08,95023.0,95022.0,0.28236165]
[1739373224411,3e-08,95023.0,95022.0,0.43236165]
[1739373224628,3e-08,95023.0,95022.0,0.45536165]
[1739373225371,7.7e-07,95029.0,95028.0,0.157848]
[1739373225580,0.000114,95043.0,95028.0,0.157848]
[1739373225581,0.000114,95043.0,95037.0,0.330833]
[1739373225732,0.000114,95043.0,95037.0,0.43333665]
[1739373226158,8.7e-07,95038.0,95037.0,0.43333665]
[1739373226580,4e-07,95044.0,95043.0,0.173]
[1739373226851,4.8e-07,95045.0,95044.0,0.01]
[1739373227144,1.2e-07,95045.0,95044.0,0.45332465]
[1739373227886,0.0477,95083.0,95074.0,0.157771]
[1739373228145,0.00035726,95075.0,95074.0,0.26027465]
[1739373229190,0.00035726,95075.0,95074.0,0.41727465]
[1739373229397,0.09372845,95085.0,95084.0,0.15]
[1739373229605,0.09337119,95085.0,95084.0,0.25250365]
[1739373229939,0.00022408,95112.0,95084.0,0.25250365]
[1739373230172,0.00035695,95111.0,95110.0,0.157712]
[1739373231246,0.00035695,95111.0,95090.0,0.24584667]
[1739373231453,0.00035695,95111.0,95106.0,0.157718]
[1739373231859,0.00035695,95111.0,95109.0,0.157713]
[1739373232227,0.00019778,95111.0,95109.0,0.157713]
[1739373232415,0.00019778,95111.0,95106.0,0.157717]
[1739373232613,0.00019778,95111.0,95091.0,0.10250365]
[1739373232614,0.00019778,95111.0,95090.0,0.01064332]
[1739373232849,0.00019778,95111.0,95108.0,0.157715]
[1739373233486,0.00019778,95111.0,95110.0,0.157712]
[1739373234541,0.00019778,95111.0,95101.0,0.210301]
[1739373234748,0.00019778,95111.0,95074.0,0.13121771]
[1739373234961,0.00019778,95111.0,95110.0,0.157712]
[1739373235695,0.00019778,95111.0,95106.0,0.157717]
[1739373235944,0.00019778,95111.0,95110.0,0.001]
[1739373236176,0.00019778,95111.0,95087.0,0.08424999]
[1739373236408,0.00019778,95111.0,95101.0,0.157725]
[1739373236651,0.00019778,95111.0,95110.0,0.001]
[1739373236883,0.00019778,95111.0,95110.0,0.158712]
[1739373237316,0.00019778,95111.0,95110.0,0.157712]
[1739373238002,0.00019778,95111.0,95101.0,0.001]
[1739373238003,0.15772,95105.0,95101.0,0.001]
[1739373238235,0.0755,95104.0,95101.0,0.001]
[1739373238447,0.60125,95104.0,95101.0,0.001]
[1739373238676,0.0456,95103.0,95101.0,0.001]
[1739373238908,0.57135,95103.0,95099.0,0.15773]
[1739373239359,0.57135,95103.0,95096.0,0.210312]
[1739373239585,0.729074,95103.0,95097.0,0.157733]
[1739373239804,0.57135,95103.0,95101.0,0.004]
[1739373240032,0.157731,95099.0,95092.0,0.15774]
[1739373240292,0.52575,95099.0,95098.0,0.157732]
[1739373241163,0.52575,95099.0,95097.0,0.157732]
[1739373241384,0.52575,95099.0,95098.0,0.157732]
[1739373241656,0.157735,95096.0,95084.0,0.01056503]
[1739373241882,0.157745,95091.0,95084.0,0.01056503]
[1739373242084,0.15,95095.0,95084.0,0.01056503]
[1739373242286,0.52575,95091.0,95084.0,0.01056503]
[1739373242748,0.52575,95091.0,95084.0,0.001]
[1739373242953,0.52575,95091.0,95090.0,0.157745]
[1739373243624,0.62825365,95091.0,95084.0,0.003]
[1739373243865,0.22880365,95090.0,95084.0,0.006]
[1739373244092,0.307753,95085.0,95084.0,0.006]
[1739373244309,0.90755365,95085.0,95045.0,0.01031312]
[1739373244651,0.0787,95063.0,95045.0,0.01031312]
[1739373244888,0.1997,95062.0,95040.0,0.08424999]
[1739373245088,0.157796,95060.0,95040.0,0.08424999]
[1739373245225,0.210391,95061.0,95045.0,0.157819]
[1739373245226,0.157803,95055.0,95045.0,0.157819]
[1739373245424,0.15781,95051.0,95045.0,0.157819]
[1739373245649,0.15781,95051.0,95040.0,0.157827]
[1739373245650,0.52575,95051.0,95040.0,0.157827]
[1739373245854,0.52575,95051.0,95037.0,0.0001064]
[1739373245855,0.68356,95051.0,95038.0,0.210442]
[1739373246082,0.68356,95051.0,95040.0,0.00013339]
[1739373246083,0.18300365,95050.0,95040.0,0.00013339]
[1739373246241,0.157826,95041.0,95040.0,0.00013339]
[1739373246442,0.57275,95041.0,95040.0,0.00013339]
[1739373246643,0.57275,95041.0,95040.0,0.00113339]
[1739373246853,0.57275,95041.0,95040.0,0.15796139]
[1739373247059,0.52575,95041.0,95040.0,0.15996139]
[1739373247473,0.52575,95041.0,95040.0,0.26246504]
[1739373248041,0.52575,95041.0,95040.0,0.27321407]
[1739373248499,0.52575,95041.0,95040.0,0.28021407]
[1739373248703,0.52575,95041.0,95040.0,0.45321407]
[1739373248881,0.52575,95041.0,95040.0,0.47121407]
[1739373248882,0.39380998,95041.0,95040.0,0.47121407]
[1739373249080,0.34573239,95041.0,95040.0,0.46968908]
[1739373249293,0.34573239,95041.0,95040.0,0.47568908]
[1739373249719,0.34573239,95041.0,95040.0,0.48068908]
[1739373249915,0.24151239,95041.0,95040.0,0.47668908]
[1739373250121,0.24151239,95041.0,95040.0,0.49168908]
[1739373250323,0.16549984,95041.0,95040.0,0.48468908]
[1739373250534,0.16649984,95041.0,95040.0,0.49168908]
[1739373250738,0.03935985,95041.0,95040.0,0.49168908]
[1739373250976,0.01731585,95041.0,95040.0,0.61832908]
[1739373251188,0.0818,95098.0,95092.0,0.157741]
[1739373251392,0.0818,95098.0,95057.0,0.15]
[1739373251524,0.0818,95098.0,95089.0,0.157745]
[1739373251738,0.0818,95098.0,95058.0,0.10250365]
[1739373251739,0.0818,95098.0,95061.0,0.15]
[1739373251936,0.0818,95098.0,95088.0,0.157748]
[1739373252142,0.0818,95098.0,95088.0,0.157747]
[1739373252143,0.157734,95097.0,95088.0,0.157747]
[1739373252347,0.0818,95098.0,95063.0,0.08424999]
[1739373252348,0.0818,95098.0,95096.0,0.157734]
[1739373253841,0.0838,95098.0,95096.0,0.157734]
[1739373254076,0.0838,95098.0,95095.0,0.210314]
[1739373254308,0.0818,95098.0,95086.0,0.210334]
[1739373254532,0.09583,95098.0,95082.0,0.210343]
[1739373254759,0.10250365,95097.0,95063.0,0.08424999]
[1739373254986,0.157754,95085.0,95063.0,0.08438338]
[1739373255186,0.52587,95085.0,95063.0,0.08438338]
[1739373255411,0.52587,95085.0,95076.0,0.157768]
[1739373255412,0.157757,95083.0,95076.0,0.157768]
[1739373255615,0.683627,95083.0,95075.0,0.157769]
[1739373255829,0.683627,95083.0,95063.0,0.21051939]
[1739373255830,0.52587,95083.0,95080.0,0.157761]
[1739373256038,0.52587,95083.0,95081.0,0.157759]
[1739373256249,0.52587,95083.0,95080.0,0.210347]
[1739373256250,0.52587,95083.0,95082.0,0.157758]
[1739373257541,0.52587,95083.0,95082.0,0.003]
[1739373257542,0.683626,95083.0,95082.0,0.003]
[1739373257730,0.0482,95074.0,95063.0,0.00013339]
[1739373257901,0.0482,95074.0,95073.0,0.157773]
[1739373258107,0.57407,95074.0,95073.0,0.157773]
[1739373258314,0.57407,95074.0,95063.0,0.00013339]
[1739373258493,0.157778,95070.0,95063.0,0.00013339]
[1739373258694,0.52587,95070.0,95069.0,0.15778]
[1739373259129,0.52587,95070.0,95069.0,0.26028365]
[1739373259939,0.52587,95070.0,95069.0,0.27062348]
[1739373260144,0.52587,95070.0,95069.0,0.27562348]
[1739373260365,0.52587,95070.0,95069.0,0.27062348]
[1739373260768,0.52587,95070.0,95069.0,0.27762348]
[1739373260971,0.52587,95070.0,95069.0,0.28462348]
[1739373261326,0.52587,95070.0,95069.0,0.42762348]
[1739373261754,0.52587,95070.0,95069.0,0.44262348]
[1739373262653,0.52587,95070.0,95069.0,0.43562348]
[1739373262994,0.52587,95070.0,95069.0,0.42762348]
[1739373263987,0.1078223,95070.0,95069.0,0.46362348]
[1739373264160,0.0548223,95070.0,95069.0,0.47062348]
[1739373264380,0.02832253,95070.0,95069.0,0.48562348]
[1739373264622,6.449e-05,95111.0,95110.0,0.157712]
[1739373264830,6.449e-05,95111.0,95110.0,0.26021565]
[1739373266096,0.00019778,95111.0,95110.0,0.167712]
[1739373267119,0.00019778,95111.0,95110.0,0.01]
[1739373267331,0.07909778,95111.0,95110.0,0.01]
[1739373267551,0.157715,95108.0,95100.0,0.157727]
[1739373267752,0.157715,95108.0,95069.0,0.007]
[1739373267753,0.210287,95108.0,95093.0,0.157738]
[1739373267953,0.0458,95109.0,95082.0,0.210344]
[1739373267954,0.210291,95106.0,95086.0,0.210335]
[1739373268153,0.234837,95095.0,95087.0,0.15775]
[1739373268388,0.157744,95091.0,95083.0,0.157755]
[1739373268592,0.15774,95093.0,95073.0,0.22115888]
[1739373268793,0.0451,95094.0,95073.0,0.22115888]
[1739373268990,0.0451,95094.0,95073.0,0.210364]
[1739373269129,0.0451,95094.0,95087.0,0.004]
[1739373269540,0.0451,95094.0,95087.0,0.161749]
[1739373269950,0.0451,95094.0,95087.0,0.004]
[1739373270366,0.0451,95094.0,95087.0,0.161749]
[1739373270541,0.0451,95094.0,95073.0,0.210364]
[1739373270759,0.15775,95087.0,95069.0,0.01046149]
[1739373270959,0.157747,95089.0,95073.0,0.001]
[1739373271157,0.0771,95095.0,95089.0,0.157746]
[1739373271389,0.0771,95095.0,95094.0,0.157738]
[1739373272904,0.00019778,95111.0,95094.0,0.157738]
[1739373272905,0.00019778,95111.0,95110.0,0.157712]
[1739373275206,0.00019778,95111.0,95096.0,0.210312]
[1739373275369,0.00019778,95111.0,95098.0,0.210309]
[1739373275756,0.00019778,95111.0,95079.0,0.15]
[1739373275932,0.00019778,95111.0,95107.0,0.157716]
[1739373276161,0.00019778,95111.0,95084.0,0.15]
[1739373276364,0.00019778,95111.0,95085.0,0.10250365]
[1739373276365,0.157722,95104.0,95085.0,0.10250365]
[1739373276477,0.52578,95104.0,95085.0,0.10250365]
[1739373276696,0.52578,95104.0,95100.0,0.157727]
[1739373277109,0.52578,95104.0,95097.0,0.157732]
[1739373277507,0.00022345,95095.0,95094.0,0.2104234]
[1739373277900,0.52600345,95095.0,95094.0,0.2104234]
[1739373278313,0.52600345,95095.0,95094.0,0.2455834]
[1739373278733,0.68373945,95095.0,95094.0,0.0352664]
[1739373278932,0.52600345,95095.0,95094.0,0.0352664]
[1739373279140,0.8139398,95095.0,95094.0,0.0352664]
[1739373279348,0.76133945,95095.0,95094.0,0.0352664]
[1739373279571,0.60360345,95095.0,95094.0,0.0392664]
[1739373279777,0.76133945,95095.0,95094.0,0.0392664]
[1739373279984,0.76133945,95095.0,95094.0,0.0352664]
[1739373280190,0.76133945,95095.0,95094.0,0.0362664]
[1739373280835,0.81093945,95095.0,95094.0,0.0362664]
[1739373281035,1.0634431,95095.0,95094.0,0.0362664]
[1739373281257,1.0634431,95095.0,95094.0,0.0372664]
[1739373281693,1.07392717,95095.0,95094.0,0.0362664]
[1739373282556,1.07392717,95095.0,95094.0,0.0352664]
[1739373282770,0.81093945,95095.0,95094.0,0.0362664]
[1739373282976,0.81093945,95095.0,95094.0,0.1940044]
[1739373282977,0.65320345,95095.0,95094.0,0.1940044]
[1739373283620,0.52600345,95095.0,95094.0,0.1930044]
[1739373284044,0.52600345,95095.0,95094.0,0.1940044]
[1739373284248,0.52600345,95095.0,95094.0,0.1930044]
[1739373285701,0.52600345,95095.0,95094.0,0.1940044]
[1739373285902,0.52600345,95095.0,95094.0,0.0362664]
[1739373286943,0.52600345,95095.0,95094.0,0.1930044]
[1739373287148,0.52600345,95095.0,95094.0,0.1960044]
[1739373287387,0.52600345,95095.0,95094.0,0.0382664]
[1739373287590,0.68373945,95095.0,95094.0,0.0382664]
[1739373287811,0.52600345,95095.0,95094.0,0.0382664]
[1739373288011,0.52600345,95095.0,95094.0,0.1960044]
[1739373288225,0.52600345,95095.0,95094.0,0.1990044]
[1739373288634,0.52600345,95095.0,95094.0,0.29850805]
[1739373288866,0.52600345,95095.0,95094.0,0.30150805]
[1739373289323,0.52600345,95095.0,95094.0,0.45150805]
[1739373289522,0.52600345,95095.0,95094.0,0.44850805]
[1739373289731,0.52600345,95095.0,95094.0,0.45450805]
[1739373290154,0.52600345,95095.0,95094.0,0.45950805]
[1739373290358,0.52600345,95095.0,95094.0,0.46509823]
[1739373290753,0.52600345,95095.0,95094.0,0.48809823]
[1739373290967,0.52600345,95095.0,95094.0,0.49409823]
[1739373291370,0.52600345,95095.0,95094.0,0.46209823]
[1739373291784,0.52600345,95095.0,95094.0,0.47209823]
[1739373292177,0.52600345,95095.0,95094.0,0.45609823]
[1739373292515,0.52600345,95095.0,95094.0,0.47809823]
[1739373292720,0.52600345,95095.0,95094.0,0.47109823]
[1739373292923,0.52600345,95095.0,95094.0,0.45609823]
[1739373293144,0.52600345,95095.0,95094.0,0.47809823]
[1739373293351,0.52600345,95095.0,95094.0,0.47109823]
[1739373293574,0.52600345,95095.0,95094.0,0.47809823]
[1739373294028,0.52600345,95095.0,95094.0,0.47109823]
[1739373294863,0.52600345,95095.0,95094.0,0.49409823]
[1739373295112,0.52600345,95095.0,95094.0,0.47909823]
[1739373295113,0.44187545,95095.0,95094.0,0.47909823]
[1739373295325,0.38930345,95095.0,95094.0,0.50109823]
[1739373295533,0.38930345,95095.0,95094.0,0.49409823]
[1739373295750,0.38930345,95095.0,95094.0,0.48609823]
[1739373295964,0.24710345,95095.0,95094.0,0.48609823]
[1739373296160,0.24710345,95095.0,95094.0,0.49409823]
[1739373296618,0.24710345,95095.0,95094.0,0.48609823]
[1739373296820,0.16191582,95095.0,95094.0,0.47909823]
[1739373297024,0.00022366,95119.0,95110.0,0.307712]
[1739373297194,0.00022366,95119.0,95110.0,0.41021565]
[1739373298390,0.00022366,95119.0,95110.0,0.42521565]
[1739373298595,0.00022366,95119.0,95110.0,0.43221565]
[1739373299019,0.00022366,95119.0,95110.0,0.41021565]
[1739373299217,0.00022366,95119.0,95110.0,0.43221565]
[1739373299619,0.00022366,95119.0,95110.0,0.42521565]
[1739373299794,0.00022366,95119.0,95110.0,0.41721565]
[1739373299999,0.00022366,95119.0,95110.0,0.43221565]
[1739373300427,0.00022366,95119.0,95110.0,0.44970916]
[1739373300627,0.07662408,95112.0,95110.0,0.43921565]
[1739373301243,0.07662408,95112.0,95110.0,0.029]
[1739373301445,0.21268997,95111.0,95110.0,0.014]
[1739373301648,0.21268997,95111.0,95110.0,0.029]
[1739373301855,0.21268997,95111.0,95094.0,0.0352664]
[1739373301856,0.38821143,95111.0,95094.0,0.0352664]
[1739373302076,0.238436,95095.0,95094.0,0.0352664]
[1739373302290,0.285736,95095.0,95094.0,0.0352664]
[1739373302732,0.128,95095.0,95094.0,0.0352664]
[1739373303250,0.128,95095.0,95094.0,0.0402664]
[1739373303251,0.1408,95095.0,95094.0,0.0402664]
[1739373303451,0.128,95095.0,95094.0,0.0352664]
[1739373304285,0.12790743,95095.0,95094.0,0.0352664]
[1739373304969,0.12790743,95095.0,95094.0,0.0462664]
[1739373305180,0.12790743,95095.0,95094.0,0.0412664]
[1739373305593,0.12790743,95095.0,95094.0,0.0462664]
[1739373305774,0.65369743,95095.0,95094.0,0.0402664]
[1739373305998,0.75620108,95095.0,95094.0,0.0402664]
[1739373306224,0.75620108,95095.0,95094.0,0.0412664]
[1739373306225,0.90720108,95095.0,95094.0,0.0412664]
[1739373306447,0.92774997,95095.0,95094.0,0.0412664]
[1739373306665,1.04708892,95095.0,95094.0,0.0352664]
[1739373306873,0.94974997,95095.0,95094.0,0.0372664]
[1739373307710,0.92674997,95095.0,95094.0,0.0372664]
[1739373308090,0.94974997,95095.0,95094.0,0.0372664]
[1739373308310,0.157778,95070.0,95066.0,0.08424999]
[1739373308512,0.079,95069.0,95066.0,0.08424999]
[1739373308720,0.60479,95069.0,95067.0,0.157783]
[1739373309249,0.52579,95069.0,95067.0,0.157782]
[1739373310091,0.52579,95069.0,95067.0,0.164782]
[1739373310302,0.52579,95069.0,95067.0,0.007]
[1739373311124,0.68357,95069.0,95067.0,0.007]
[1739373311548,0.0488,95068.0,95067.0,0.007]
[1739373311769,0.57459,95068.0,95067.0,0.007]
[1739373312194,0.57459,95068.0,95067.0,0.1648894]
[1739373312399,0.57459,95068.0,95067.0,0.1578894]
[1739373312951,0.52679,95068.0,95067.0,0.1648894]
[1739373313425,0.52779,95068.0,95067.0,0.1718894]
[1739373313878,0.52779,95068.0,95067.0,0.0141064]
[1739373314361,0.87189041,95068.0,95067.0,0.0141064]
[1739373314859,1.15029041,95068.0,95067.0,0.0141064]
[1739373315098,1.17329041,95068.0,95067.0,0.0141064]
[1739373315804,1.08847465,95068.0,95067.0,0.0071064]
[1739373316047,1.0956234,95068.0,95067.0,0.0001064]
[1739373316590,1.0986234,95068.0,95067.0,0.0001064]
[1739373316820,1.09916758,95068.0,95067.0,0.0011064]
[1739373317055,1.10216758,95068.0,95067.0,0.0001064]
[1739373317272,1.09116758,95068.0,95067.0,0.0001064]
[1739373317518,1.10216758,95068.0,95067.0,0.0011064]
[1739373317806,1.09616758,95068.0,95067.0,0.0011064]
[1739373317996,1.22467123,95068.0,95067.0,0.0011064]
[1739373318196,1.13216758,95068.0,95067.0,0.0011064]
[1739373318402,1.13216758,95068.0,95040.0,0.0109174]
[1739373318403,0.307824,95042.0,95040.0,0.0109174]
[1739373318557,1.01711765,95042.0,95041.0,0.00023979]
[1739373319356,0.764614,95042.0,95041.0,0.00023979]
[1739373319742,0.60679,95042.0,95041.0,0.00023979]
[1739373320163,0.60779,95042.0,95041.0,0.00023979]
[1739373320380,0.765614,95042.0,95041.0,0.00023979]
[1739373320579,0.61279,95042.0,95041.0,0.00023979]
[1739373321005,0.61179,95042.0,95041.0,0.15806579]
[1739373321204,0.61179,95042.0,95041.0,0.00223979]
[1739373321916,0.60679,95042.0,95041.0,0.00223979]
[1739373322323,0.61079,95042.0,95041.0,0.00223979]
[1739373322611,0.61079,95042.0,95041.0,0.00023979]
[1739373322815,0.765614,95042.0,95041.0,0.00023979]
[1739373323021,0.61179,95042.0,95041.0,0.00023979]
[1739373323223,0.53079,95042.0,95041.0,0.15806579]
[1739373323425,0.53179,95042.0,95041.0,0.15806579]
[1739373323626,0.52579,95042.0,95041.0,0.15806579]
[1739373324001,0.53079,95042.0,95041.0,0.15806579]
[1739373324215,0.53079,95042.0,95041.0,0.41056944]
[1739373324621,0.53079,95042.0,95041.0,0.42323363]
[1739373325239,0.505747,95042.0,95041.0,0.44623363]
[1739373325466,0.421575,95042.0,95041.0,0.45623363]
[1739373325670,0.422575,95042.0,95041.0,0.46323363]
[1739373325844,0.338403,95042.0,95041.0,0.47323363]
[1739373326043,0.31736,95042.0,95041.0,0.47323363]
[1739373326255,0.31636,95042.0,95041.0,0.47670035]
[1739373326453,0.18626873,95042.0,95041.0,0.47670035]
[1739373326657,0.17761069,95042.0,95041.0,0.48500035]
[1739373326861,0.09375612,95080.0,95072.0,0.156775]
[1739373327044,0.0755,95099.0,95072.0,0.25927865]
[1739373327239,0.157735,95096.0,95082.0,0.156758]
[1739373327489,0.0755,95099.0,95059.0,0.15]
[1739373327716,0.10250365,95093.0,95060.0,0.10150365]
[1739373327940,0.157751,95087.0,95077.0,0.157765]
[1739373328143,0.157744,95091.0,95081.0,0.157759]
[1739373328393,0.157744,95091.0,95082.0,0.001]
[1739373328557,0.157745,95090.0,95078.0,0.210352]
[1739373329369,0.00022345,95094.0,95081.0,0.001]
[1739373329546,0.00022345,95094.0,95092.0,0.157741]
[1739373330320,0.00022345,95094.0,95092.0,0.156741]
[1739373331146,0.00022345,95094.0,95092.0,0.157741]
[1739373332000,0.00122345,95094.0,95092.0,0.157741]
[1739373332210,0.00122345,95094.0,95093.0,0.2535551]
[1739373332421,6.449e-05,95111.0,95110.0,0.157712]
[1739373332629,6.449e-05,95111.0,95110.0,0.41021565]
[1739373332839,0.00019778,95111.0,95110.0,0.40921565]
[1739373334260,0.00019778,95111.0,95110.0,0.41621565]
[1739373334424,0.00019778,95111.0,95110.0,0.41965119]
[1739373334618,0.00119778,95111.0,95110.0,0.43465119]
[1739373334828,0.00119778,95111.0,95110.0,0.44165119]
[1739373335234,0.00019778,95111.0,95110.0,0.42665119]
[1739373335675,0.00019778,95111.0,95110.0,0.41965119]
[1739373336128,0.00119778,95111.0,95110.0,0.43465119]
[1739373336618,0.00019778,95111.0,95110.0,0.41965119]
[1739373336800,0.00019778,95111.0,95110.0,0.44265119]
[1739373337071,0.00119778,95111.0,95110.0,0.42665119]
[1739373337333,0.00119778,95111.0,95110.0,0.41965119]
[1739373337567,0.00219778,95111.0,95110.0,0.44965119]
[1739373338065,0.00319778,95111.0,95110.0,0.46465119]
[1739373338550,0.00022366,95134.0,95133.0,0.307673]
[1739373338773,0.00022366,95134.0,95133.0,0.40917665]
[1739373338978,0.00022366,95134.0,95133.0,0.43217665]
[1739373339519,0.00022366,95134.0,95133.0,0.43117665]
[1739373339936,0.00022366,95134.0,95133.0,0.44150139]
[1739373340138,8e-08,95136.0,95135.0,0.31767]
[1739373340460,8e-08,95136.0,95135.0,0.44317365]
[1739373341483,8e-08,95136.0,95135.0,0.45017365]
[1739373341712,0.00018416,95141.0,95140.0,0.307662]
[1739373341895,0.00062836,95141.0,95140.0,0.44316565]
[1739373342067,2e-07,95142.0,95141.0,0.173]
[1739373342242,0.0481,95178.0,95177.0,0.157601]
[1739373342459,0.04823326,95178.0,95177.0,0.26010465]
[1739373342633,0.04823326,95178.0,95177.0,0.157601]
[1739373343274,0.04823326,95178.0,95169.0,0.210151]
[1739373343477,0.157606,95174.0,95162.0,0.157625]
[1739373343777,0.210134,95177.0,95162.0,0.157625]
[1739373343989,0.04823326,95178.0,95155.0,0.210182]
[1739373344191,0.04823326,95178.0,95177.0,0.002]
[1739373344624,0.04823326,95178.0,95145.0,0.08424999]
[1739373344625,0.048,95177.0,95145.0,0.08424999]
[1739373344825,0.10250365,95176.0,95162.0,0.003]
[1739373345042,0.157624,95163.0,95162.0,0.003]
[1739373345932,0.210162,95165.0,95145.0,0.09482078]
[1739373346171,0.210144,95173.0,95146.0,0.10355452]
[1739373346365,0.03205234,95184.0,95155.0,0.002]
[1739373346578,0.11545698,95176.0,95151.0,0.157644]
[1739373346783,0.157635,95157.0,95143.0,0.210207]
[1739373346991,0.210143,95173.0,95143.0,0.10250365]
[1739373347209,0.10250365,95172.0,95143.0,0.10250365]
[1739373347632,0.157637,95156.0,95147.0,0.15765]
[1739373347833,0.10250365,95172.0,95140.0,0.210216]
[1739373348033,0.10250365,95172.0,95129.0,0.210239]
[1739373348034,0.1266,95153.0,95129.0,0.210239]
[1739373348263,0.1266,95153.0,95135.0,0.15767]
[1739373348264,0.157659,95142.0,95135.0,0.15767]
[1739373348469,0.1266,95153.0,95143.0,0.001]
[1739373348586,0.157655,95144.0,95143.0,0.001]
[1739373349167,0.52552,95144.0,95136.0,0.157668]
[1739373349421,0.52552,95144.0,95129.0,0.001]
[1739373349597,0.52565318,95144.0,95138.0,0.157665]
[1739373349805,0.52565318,95144.0,95129.0,0.001]
[1739373349806,0.68331018,95144.0,95143.0,0.005]
[1739373350034,0.157658,95143.0,95135.0,0.15767]
[1739373350246,0.157658,95143.0,95132.0,0.210233]
[1739373350247,0.52565318,95144.0,95143.0,0.157657]
[1739373350451,0.367863,95143.0,95136.0,0.005]
[1739373350660,0.367863,95143.0,95142.0,0.157659]
[1739373350871,0.367863,95143.0,95142.0,0.26016265]
[1739373352308,0.3679696,95143.0,95142.0,0.26016265]
[1739373352523,0.08965587,95143.0,95142.0,0.26916265]
[1739373352725,0.08965587,95143.0,95142.0,0.41916265]
[1739373353151,0.08965587,95143.0,95142.0,0.26916265]
[1739373353352,0.08965587,95143.0,95142.0,0.166659]
[1739373353565,0.08965587,95143.0,95142.0,0.26916265]
[1739373353747,0.08965587,95143.0,95142.0,0.27616265]
[1739373353990,0.08965587,95143.0,95142.0,0.26916265]
[1739373354193,0.08965587,95143.0,95142.0,0.27616265]
[1739373354395,0.08965587,95143.0,95142.0,0.26716265]
[1739373354633,0.08965587,95143.0,95142.0,0.27016265]
[1739373355455,0.08965587,95143.0,95142.0,0.42016265]
[1739373355601,0.08965587,95143.0,95142.0,0.41016265]
[1739373355800,0.08965587,95143.0,95142.0,0.41716265]
[1739373355984,0.08965587,95143.0,95142.0,0.42316265]
[1739373356186,0.08965587,95143.0,95142.0,0.44616265]
[1739373356399,0.08965587,95143.0,95142.0,0.45316265]
[1739373356978,0.08965587,95143.0,95142.0,0.43016265]
[1739373357184,0.08965587,95143.0,95142.0,0.42316265]
[1739373357528,0.08965587,95143.0,95142.0,0.43016265]
[1739373357942,0.08965587,95143.0,95142.0,0.41716265]
[1739373358144,0.0496,95181.0,95144.0,0.023]
[1739373358332,0.0496,95181.0,95180.0,0.157596]
[1739373358333,0.04973316,95181.0,95180.0,0.157596]
[1739373360377,0.04973316,95181.0,95180.0,0.164596]
[1739373360843,0.04973316,95181.0,95180.0,0.171596]
[1739373361236,0.04973316,95181.0,95178.0,0.210131]
[1739373361457,0.04973316,95181.0,95180.0,0.157596]
[1739373361673,0.04973316,95181.0,95180.0,0.27609965]
[1739373362081,0.04973316,95181.0,95180.0,0.26709965]
[1739373362287,0.00013316,95181.0,95180.0,0.26709965]
[1739373362909,0.00013316,95181.0,95180.0,0.41009965]
[1739373363122,0.00013316,95181.0,95180.0,0.41709965]
[1739373363357,0.00013316,95181.0,95180.0,0.28109965]
[1739373363561,0.00013316,95181.0,95180.0,0.27409965]
[1739373363734,0.00013316,95181.0,95180.0,0.28109965]
[1739373363938,0.00013316,95181.0,95180.0,0.27409965]
[1739373364340,0.00023966,95181.0,95180.0,0.43109965]
[1739373364740,0.00023966,95181.0,95180.0,0.41709965]
[1739373364943,0.00023966,95181.0,95180.0,0.43009965]
[1739373365722,0.00023966,95181.0,95180.0,0.26709965]
[1739373365925,0.00023966,95181.0,95180.0,0.28909965]
[1739373366416,0.00023966,95181.0,95180.0,0.27409965]
[1739373366605,0.00023966,95181.0,95180.0,0.28909965]
[1739373366885,0.00023966,95181.0,95180.0,0.27509965]
[1739373367095,0.07723966,95181.0,95180.0,0.179596]
[1739373367305,0.07723966,95181.0,95180.0,0.172596]
[1739373367514,0.00023966,95181.0,95180.0,0.179596]
[1739373367737,0.00023966,95181.0,95180.0,0.28209965]
[1739373367966,0.00023966,95181.0,95180.0,0.157596]
[1739373368223,0.00023966,95181.0,95180.0,0.172596]
[1739373368588,0.00014713,95181.0,95180.0,0.172596]
[1739373368797,0.00014713,95181.0,95180.0,0.157596]
[1739373369007,0.00014713,95181.0,95180.0,0.172596]
[1739373369608,0.00014713,95181.0,95180.0,0.157596]
[1739373369814,0.00014713,95181.0,95180.0,0.164596]
[1739373370003,0.00014713,95181.0,95180.0,0.179596]
[1739373370204,0.00014713,95181.0,95180.0,0.172596]
[1739373371049,0.00014713,95181.0,95180.0,0.179596]
[1739373371436,0.00014713,95181.0,95180.0,0.164596]
[1739373372029,0.00014713,95181.0,95180.0,0.179596]
[1739373372233,0.00014713,95181.0,95180.0,0.17714657]
[1739373372436,0.00014713,95181.0,95180.0,0.176096]
[1739373373077,0.00014713,95181.0,95180.0,0.170796]
[1739373373283,0.00014713,95181.0,95180.0,0.022]
[1739373374134,0.00014713,95181.0,95180.0,0.12450365]
[1739373374337,0.00014713,95181.0,95180.0,0.11750365]
[1739373374536,0.00014713,95181.0,95180.0,0.2555541]
[1739373374749,0.00014713,95181.0,95180.0,0.25450365]
[1739373374953,0.00014713,95181.0,95180.0,0.26350365]
[1739373375283,0.00014713,95181.0,95180.0,0.25250365]
[1739373375698,0.00014713,95181.0,95180.0,0.26750365]
[1739373376123,0.00114713,95181.0,95180.0,0.25950365]